[Event "*** Titled Tuesday Blitz"]
[Site "Chess.com"]
[Date "2020.04.21"]
[Round "5"]
[White "AndrewMaco"]
[Black "YaWaleriy"]
[Result "0-1"]
[WhiteElo "2558"]
[BlackElo "2274"]
[TimeControl "180+1"]
[EndTime "10:57:27 PDT"]
[Termination "YaWaleriy won on time"]

1. e4 {[%clk 0:03:00.9]} 1... e6 {[%clk 0:02:59.8]} 2. d4 {[%clk 0:02:52.2]}
2... d5 {[%clk 0:03:00]} 3. Nc3 {[%clk 0:02:48.5]} 3... Nf6 {[%clk 0:02:59.7]}
4. e5 {[%clk 0:02:48.2]} 4... Nfd7 {[%clk 0:02:59.7]} 5. f4 {[%clk 0:02:48.8]}
5... c5 {[%clk 0:03:00.2]} 6. Nf3 {[%clk 0:02:49.5]} 6... Nc6 {[%clk 0:03:00.6]}
7. Be3 {[%clk 0:02:48]} 7... cxd4 {[%clk 0:03:00.7]} 8. Nxd4 {[%clk 0:02:48.9]}
8... Bc5 {[%clk 0:03:00.7]} 9. Qd2 {[%clk 0:02:48.5]} 9... O-O {[%clk
0:03:01.1]} 10. O-O-O {[%clk 0:02:48.6]} 10... a6 {[%clk 0:03:01.5]} 11. Qf2
{[%clk 0:02:45.7]} 11... Bxd4 {[%clk 0:02:59.2]} 12. Bxd4 {[%clk 0:02:45.9]}
12... b5 {[%clk 0:02:59.7]} 13. Be3 {[%clk 0:02:46.2]} 13... b4 {[%clk
0:02:55.9]} 14. Na4 {[%clk 0:02:46]} 14... a5 {[%clk 0:02:54.4]} 15. h4 {[%clk
0:02:37.6]} 15... Ba6 {[%clk 0:02:53.2]} 16. h5 {[%clk 0:02:37.4]} 16... Qc7
{[%clk 0:02:42.3]} 17. h6 {[%clk 0:02:33.4]} 17... g6 {[%clk 0:02:41.5]} 18. g4
{[%clk 0:02:33.8]} 18... f6 {[%clk 0:02:15.9]} 19. exf6 {[%clk 0:02:26.1]} 19...
Rxf6 {[%clk 0:02:09.5]} 20. Qe1 {[%clk 0:02:02.2]} 20... Bxf1 {[%clk 0:01:43.9]}
21. Rxf1 {[%clk 0:02:03.1]} 21... Rc8 {[%clk 0:01:44]} 22. Qe2 {[%clk
0:01:57.9]} 22... Rcf8 {[%clk 0:01:30.7]} 23. Kb1 {[%clk 0:01:49.9]} 23... e5
{[%clk 0:01:05.6]} 24. Qd3 {[%clk 0:00:47]} 24... d4 {[%clk 0:00:48.4]} 25. Qc4+
{[%clk 0:00:47.1]} 25... Kh8 {[%clk 0:00:45.2]} 26. Bc1 {[%clk 0:00:29.5]} 26...
Qd6 {[%clk 0:00:33.7]} 27. fxe5 {[%clk 0:00:23.4]} 27... Ndxe5 {[%clk
0:00:33.1]} 28. Qe2 {[%clk 0:00:21.8]} 28... Rxf1 {[%clk 0:00:27.2]} 29. Rxf1
{[%clk 0:00:22.7]} 29... Rxf1 {[%clk 0:00:25.4]} 30. Qxf1 {[%clk 0:00:23.6]}
30... d3 {[%clk 0:00:25.5]} 31. Bg5 {[%clk 0:00:11.1]} 31... d2 {[%clk
0:00:19.9]} 32. Qd1 {[%clk 0:00:09.3]} 32... Nxg4 {[%clk 0:00:19.5]} 33. Bxd2
{[%clk 0:00:05.8]} 33... Kg8 {[%clk 0:00:17.8]} 34. Qe2 {[%clk 0:00:04.8]} 34...
Nf6 {[%clk 0:00:14.8]} 35. b3 {[%clk 0:00:03.3]} 35... Nd5 {[%clk 0:00:12.9]}
36. Qc4 {[%clk 0:00:03.1]} 36... Qe6 {[%clk 0:00:12.2]} 37. Bc1 {[%clk
0:00:03.1]} 37... Nc3+ {[%clk 0:00:11]} 38. Nxc3 {[%clk 0:00:02.6]} 38... Qxc4
{[%clk 0:00:11.3]} 39. bxc4 {[%clk 0:00:03.5]} 39... bxc3 {[%clk 0:00:11.3]} 40.
a3 {[%clk 0:00:03.2]} 40... Ne5 {[%clk 0:00:11.2]} 41. Ka2 {[%clk 0:00:03.1]}
41... Nxc4 {[%clk 0:00:10.9]} 42. Kb3 {[%clk 0:00:03.5]} 42... Ne5 {[%clk
0:00:06.9]} 43. Kxc3 {[%clk 0:00:03.9]} 43... Nf7 {[%clk 0:00:07.3]} 44. Kd4
{[%clk 0:00:02.6]} 44... g5 {[%clk 0:00:07.7]} 0-1

[Event "*** Titled Tuesday Blitz"]
[Site "Chess.com"]
[Date "2020.04.21"]
[Round "5"]
[White "AustrianFalcon"]
[Black "Evgeny81"]
[Result "1-0"]
[WhiteElo "2610"]
[BlackElo "2716"]
[TimeControl "180+1"]
[EndTime "10:57:28 PDT"]
[Termination "AustrianFalcon won by resignation"]

1. e4 {[%clk 0:03:00.9]} 1... e6 {[%clk 0:03:00.2]} 2. d4 {[%clk 0:02:58.6]}
2... d5 {[%clk 0:03:01.1]} 3. Nc3 {[%clk 0:02:59.1]} 3... Nf6 {[%clk 0:03:00.4]}
4. Bg5 {[%clk 0:02:58.6]} 4... Bb4 {[%clk 0:02:58.3]} 5. e5 {[%clk 0:02:54.7]}
5... h6 {[%clk 0:02:57.7]} 6. Be3 {[%clk 0:02:47.8]} 6... Ne4 {[%clk 0:02:54.8]}
7. Qg4 {[%clk 0:02:44.5]} 7... Kf8 {[%clk 0:02:49.3]} 8. a3 {[%clk 0:02:43.6]}
8... Bxc3+ {[%clk 0:02:48.2]} 9. bxc3 {[%clk 0:02:42.4]} 9... c5 {[%clk
0:02:45.1]} 10. Bd3 {[%clk 0:02:28.6]} 10... Qa5 {[%clk 0:02:42.3]} 11. Ne2
{[%clk 0:02:16.9]} 11... cxd4 {[%clk 0:02:35.7]} 12. Bxd4 {[%clk 0:02:06.5]}
12... Nc6 {[%clk 0:02:34.9]} 13. O-O {[%clk 0:02:06.9]} 13... Bd7 {[%clk
0:02:21]} 14. Bxe4 {[%clk 0:02:02.7]} 14... dxe4 {[%clk 0:02:19.9]} 15. Qxe4
{[%clk 0:01:58.2]} 15... Qd5 {[%clk 0:02:15.8]} 16. Qe3 {[%clk 0:01:52.4]} 16...
b6 {[%clk 0:02:11.5]} 17. Rfd1 {[%clk 0:01:49.2]} 17... Qc4 {[%clk 0:02:11.2]}
18. Bxb6 {[%clk 0:01:42]} 18... axb6 {[%clk 0:01:58.6]} 19. Rxd7 {[%clk
0:01:40.6]} 19... Ne7 {[%clk 0:01:57.6]} 20. Rad1 {[%clk 0:01:37]} 20... Re8
{[%clk 0:01:56.1]} 21. Ng3 {[%clk 0:01:28.7]} 21... Nd5 {[%clk 0:01:52.5]} 22.
Qf3 {[%clk 0:01:22.5]} 22... Re7 {[%clk 0:01:52.9]} 23. Rd8+ {[%clk 0:01:18.6]}
23... Re8 {[%clk 0:01:52.5]} 24. Rxe8+ {[%clk 0:01:19.2]} 24... Kxe8 {[%clk
0:01:53.4]} 25. Ne4 {[%clk 0:01:19.9]} 25... Ke7 {[%clk 0:01:38]} 26. Nd6 {[%clk
0:01:18.7]} 26... Qf4 {[%clk 0:01:37.8]} 27. Qxf4 {[%clk 0:01:03.4]} 27... Nxf4
{[%clk 0:01:38.7]} 28. Rb1 {[%clk 0:01:00.9]} 28... f6 {[%clk 0:01:23.3]} 29.
Rxb6 {[%clk 0:00:51.2]} 29... fxe5 {[%clk 0:01:21.9]} 30. Ne4 {[%clk 0:00:50.3]}
30... Ra8 {[%clk 0:01:19]} 31. Rb7+ {[%clk 0:00:49]} 31... Kf8 {[%clk
0:01:18.7]} 32. g3 {[%clk 0:00:47.5]} 32... Nd5 {[%clk 0:01:10]} 33. c4 {[%clk
0:00:44.7]} 33... Ne7 {[%clk 0:01:10.3]} 34. Nc5 {[%clk 0:00:36.7]} 34... Rxa3
{[%clk 0:01:05.4]} 35. Nxe6+ {[%clk 0:00:36.5]} 35... Kf7 {[%clk 0:01:03.8]} 36.
Nc7 {[%clk 0:00:34.1]} 36... Kg6 {[%clk 0:00:55.6]} 37. Nb5 {[%clk 0:00:32.8]}
37... Ra1+ {[%clk 0:00:55]} 38. Kg2 {[%clk 0:00:33.3]} 38... Nf5 {[%clk
0:00:54.9]} 39. c5 {[%clk 0:00:32.9]} 39... Rc1 {[%clk 0:00:53.5]} 40. c3 {[%clk
0:00:33.3]} 40... e4 {[%clk 0:00:46.2]} 41. c6 {[%clk 0:00:31.4]} 41... Rc2
{[%clk 0:00:40.5]} 42. c7 {[%clk 0:00:27.4]} 42... Ne3+ {[%clk 0:00:30.7]} 43.
Kh3 {[%clk 0:00:27.6]} 43... Rxf2 {[%clk 0:00:27.5]} 44. Rb6+ {[%clk 0:00:26.2]}
44... Kh7 {[%clk 0:00:20.5]} 45. c8=Q {[%clk 0:00:25.7]} 45... Nf1 {[%clk
0:00:21.1]} 46. Nd4 {[%clk 0:00:20.5]} 46... Rxh2+ {[%clk 0:00:18.8]} 47. Kg4
{[%clk 0:00:20.7]} 47... Ne3+ {[%clk 0:00:15.9]} 48. Kf4 {[%clk 0:00:20.4]}
48... Nd5+ {[%clk 0:00:15.9]} 49. Kxe4 {[%clk 0:00:20.6]} 49... Nxb6 {[%clk
0:00:16.1]} 50. Qf5+ {[%clk 0:00:20.7]} 50... Kh8 {[%clk 0:00:15.1]} 51. Ne6
{[%clk 0:00:20.6]} 51... Re2+ {[%clk 0:00:12.8]} 52. Kd3 {[%clk 0:00:20.8]} 1-0

[Event "*** Titled Tuesday Blitz"]
[Site "Chess.com"]
[Date "2020.04.21"]
[Round "5"]
[White "kasparicy"]
[Black "BursaBBSatranc"]
[Result "0-1"]
[WhiteElo "2337"]
[BlackElo "2509"]
[TimeControl "180+1"]
[EndTime "10:57:29 PDT"]
[Termination "BursaBBSatranc won on time"]

1. e4 {[%clk 0:03:00.9]} 1... e5 {[%clk 0:02:59.8]} 2. Nf3 {[%clk 0:03:00.8]}
2... Nf6 {[%clk 0:03:00.2]} 3. Nxe5 {[%clk 0:02:56.3]} 3... d6 {[%clk
0:03:00.1]} 4. Nf3 {[%clk 0:02:56.7]} 4... Nxe4 {[%clk 0:03:00.4]} 5. Nc3 {[%clk
0:02:57.4]} 5... Nxc3 {[%clk 0:03:00.6]} 6. dxc3 {[%clk 0:02:58.3]} 6... Be7
{[%clk 0:03:01.5]} 7. Be3 {[%clk 0:02:56.9]} 7... Nc6 {[%clk 0:03:02]} 8. Qd2
{[%clk 0:02:57.1]} 8... Be6 {[%clk 0:03:02.6]} 9. O-O-O {[%clk 0:02:57.7]} 9...
Qd7 {[%clk 0:03:03.2]} 10. Kb1 {[%clk 0:02:58.2]} 10... Bf6 {[%clk 0:03:03.3]}
11. h4 {[%clk 0:02:57.3]} 11... h6 {[%clk 0:03:02.8]} 12. Bb5 {[%clk 0:02:56.1]}
12... a6 {[%clk 0:03:02.2]} 13. Ba4 {[%clk 0:02:56.1]} 13... b5 {[%clk
0:02:54.5]} 14. Bb3 {[%clk 0:02:55.2]} 14... Bxb3 {[%clk 0:02:55.1]} 15. cxb3
{[%clk 0:02:53.5]} 15... Qf5+ {[%clk 0:02:52.5]} 16. Ka1 {[%clk 0:02:52.6]}
16... O-O {[%clk 0:02:44.2]} 17. Nd4 {[%clk 0:02:49.4]} 17... Bxd4 {[%clk
0:02:40.4]} 18. Bxd4 {[%clk 0:02:48.4]} 18... Rfe8 {[%clk 0:02:37]} 19. g4
{[%clk 0:02:47.7]} 19... Qf3 {[%clk 0:02:33.1]} 20. g5 {[%clk 0:02:27.8]} 20...
Re2 {[%clk 0:02:26.4]} 21. Qc1 {[%clk 0:02:26.4]} 21... h5 {[%clk 0:02:20.8]}
22. g6 {[%clk 0:02:25.8]} 22... f6 {[%clk 0:01:57.8]} 23. Rhg1 {[%clk 0:02:06]}
23... Rae8 {[%clk 0:01:56.9]} 24. Rg3 {[%clk 0:01:58.4]} 24... Qf5 {[%clk
0:01:55.3]} 25. Be3 {[%clk 0:01:46.1]} 25... Ne5 {[%clk 0:01:42.8]} 26. Rd2
{[%clk 0:01:27.5]} 26... Nd3 {[%clk 0:01:19.2]} 27. Qd1 {[%clk 0:01:19.9]} 27...
Re1 {[%clk 0:01:17.8]} 28. Rxd3 {[%clk 0:01:18.4]} 28... Rxd1+ {[%clk
0:01:17.7]} 29. Rxd1 {[%clk 0:01:19.3]} 29... Re4 {[%clk 0:01:14.7]} 30. Re1
{[%clk 0:01:01]} 30... Rg4 {[%clk 0:01:03.1]} 31. a3 {[%clk 0:00:43.6]} 31...
Qxg6 {[%clk 0:00:59.5]} 32. Reg1 {[%clk 0:00:37.6]} 32... Qf5 {[%clk 0:00:56.6]}
33. Bd4 {[%clk 0:00:28.2]} 33... Kf7 {[%clk 0:00:51.1]} 34. Rxg4 {[%clk
0:00:24.2]} 34... hxg4 {[%clk 0:00:51.1]} 35. Be3 {[%clk 0:00:20.3]} 35... Qf3
{[%clk 0:00:44.3]} 36. c4 {[%clk 0:00:19.9]} 36... bxc4 {[%clk 0:00:42.9]} 37.
bxc4 {[%clk 0:00:20.8]} 37... Qe2 {[%clk 0:00:41.1]} 38. c5 {[%clk 0:00:20.3]}
38... d5 {[%clk 0:00:39.3]} 39. h5 {[%clk 0:00:15.7]} 39... f5 {[%clk
0:00:35.4]} 40. Rc1 {[%clk 0:00:12.3]} 40... Qd3 {[%clk 0:00:33.4]} 41. Bf4
{[%clk 0:00:10.5]} 41... c6 {[%clk 0:00:33]} 42. h6 {[%clk 0:00:09.8]} 42...
gxh6 {[%clk 0:00:32.7]} 43. Bxh6 {[%clk 0:00:09.8]} 43... d4 {[%clk 0:00:30]}
44. Re1 {[%clk 0:00:07.6]} 44... Qc2 {[%clk 0:00:24]} 45. Re5 {[%clk 0:00:05]}
45... Qxf2 {[%clk 0:00:21.5]} 46. Bg5 {[%clk 0:00:04.3]} 46... d3 {[%clk
0:00:20.4]} 47. Re7+ {[%clk 0:00:03.7]} 47... Kg6 {[%clk 0:00:20.4]} 48. Be3
{[%clk 0:00:02.5]} 48... Qf1+ {[%clk 0:00:18.2]} 49. Ka2 {[%clk 0:00:02.7]}
49... Qe2 {[%clk 0:00:17.2]} 0-1

[Event "*** Titled Tuesday Blitz"]
[Site "Chess.com"]
[Date "2020.04.21"]
[Round "5"]
[White "petincash"]
[Black "The_Chess_Coach"]
[Result "1-0"]
[WhiteElo "2341"]
[BlackElo "2134"]
[TimeControl "180+1"]
[EndTime "10:57:30 PDT"]
[Termination "petincash won by resignation"]

1. e4 {[%clk 0:03:00.9]} 1... e5 {[%clk 0:02:59.5]} 2. Nf3 {[%clk 0:03:00.5]}
2... Nc6 {[%clk 0:02:59.8]} 3. Bb5 {[%clk 0:03:01]} 3... a6 {[%clk 0:03:00.2]}
4. Ba4 {[%clk 0:03:00.7]} 4... Nf6 {[%clk 0:03:00.6]} 5. O-O {[%clk 0:03:01]}
5... Be7 {[%clk 0:03:00.6]} 6. Bxc6 {[%clk 0:03:00.4]} 6... dxc6 {[%clk
0:02:56.8]} 7. d3 {[%clk 0:03:00.9]} 7... Nd7 {[%clk 0:02:27.6]} 8. Nbd2 {[%clk
0:03:01.4]} 8... c5 {[%clk 0:02:20.2]} 9. Nc4 {[%clk 0:03:02.1]} 9... f6 {[%clk
0:02:20.4]} 10. Ne3 {[%clk 0:03:01.8]} 10... Nf8 {[%clk 0:02:17.4]} 11. Nh4
{[%clk 0:03:01.3]} 11... g6 {[%clk 0:02:11.8]} 12. Nd5 {[%clk 0:02:54.4]} 12...
Ne6 {[%clk 0:02:06.3]} 13. g3 {[%clk 0:02:34]} 13... f5 {[%clk 0:01:36.5]} 14.
Nxe7 {[%clk 0:02:30.2]} 14... Qxe7 {[%clk 0:01:26.5]} 15. exf5 {[%clk
0:02:30.4]} 15... gxf5 {[%clk 0:01:24]} 16. Qh5+ {[%clk 0:02:28.1]} 16... Qf7
{[%clk 0:01:20.1]} 17. Qxf7+ {[%clk 0:02:24.3]} 17... Kxf7 {[%clk 0:01:21]} 18.
Nxf5 {[%clk 0:02:24.6]} 18... Kf6 {[%clk 0:01:20]} 19. Ne3 {[%clk 0:02:21.6]}
19... c6 {[%clk 0:01:14.1]} 20. b3 {[%clk 0:02:16.2]} 20... Nd4 {[%clk 0:01:13]}
21. Bb2 {[%clk 0:02:13.8]} 21... Bh3 {[%clk 0:01:07.1]} 22. f4 {[%clk
0:01:33.9]} 22... Bxf1 {[%clk 0:00:49.6]} 23. Rxf1 {[%clk 0:01:33.6]} 23... exf4
{[%clk 0:00:39.3]} 24. Rxf4+ {[%clk 0:01:33.2]} 24... Ke5 {[%clk 0:00:38.1]} 25.
Nc4+ {[%clk 0:01:10.2]} 25... Ke6 {[%clk 0:00:32.2]} 26. Re4+ {[%clk 0:01:01.6]}
26... Kf6 {[%clk 0:00:20.3]} 27. Nd6 {[%clk 0:00:40.2]} 27... Rad8 {[%clk
0:00:17.2]} 28. Nxb7 {[%clk 0:00:39.5]} 28... Rde8 {[%clk 0:00:17.4]} 29. Nxc5
{[%clk 0:00:38.5]} 29... Rxe4 {[%clk 0:00:17.3]} 30. Nxe4+ {[%clk 0:00:38.4]}
30... Ke5 {[%clk 0:00:17.5]} 31. Ng5 {[%clk 0:00:36.6]} 31... h6 {[%clk
0:00:16.7]} 32. Nf7+ {[%clk 0:00:36.2]} 32... Kd5 {[%clk 0:00:16.1]} 33. c4+
{[%clk 0:00:28]} 33... Ke6 {[%clk 0:00:14.5]} 34. Nxh8 {[%clk 0:00:25.5]} 34...
Nf3+ {[%clk 0:00:14.1]} 35. Kf2 {[%clk 0:00:22.1]} 35... Ng5 {[%clk 0:00:15]}
36. h4 {[%clk 0:00:19.2]} 36... Nh7 {[%clk 0:00:14.5]} 37. Ng6 {[%clk
0:00:18.6]} 37... Nf6 {[%clk 0:00:13.5]} 38. Kf3 {[%clk 0:00:17.6]} 38... Nd7
{[%clk 0:00:13.3]} 39. Nf4+ {[%clk 0:00:17.1]} 39... Kf5 {[%clk 0:00:12.9]} 40.
d4 {[%clk 0:00:16.4]} 40... h5 {[%clk 0:00:12.6]} 41. Nxh5 {[%clk 0:00:16.1]}
41... Kg6 {[%clk 0:00:13.2]} 42. g4 {[%clk 0:00:16.1]} 42... Nf8 {[%clk
0:00:12.4]} 43. Nf4+ {[%clk 0:00:16.5]} 43... Kf7 {[%clk 0:00:11.9]} 44. d5
{[%clk 0:00:17.4]} 44... cxd5 {[%clk 0:00:11.5]} 45. cxd5 {[%clk 0:00:18.3]}
45... Nd7 {[%clk 0:00:12.2]} 46. h5 {[%clk 0:00:18.8]} 46... Nc5 {[%clk
0:00:12.3]} 47. g5 {[%clk 0:00:18.8]} 47... Kg8 {[%clk 0:00:12.5]} 48. g6 {[%clk
0:00:19.2]} 48... Nd7 {[%clk 0:00:12.7]} 49. d6 {[%clk 0:00:19.1]} 49... Nf8
{[%clk 0:00:12.8]} 50. Nd5 {[%clk 0:00:18.4]} 50... a5 {[%clk 0:00:12.8]} 51.
Kg4 {[%clk 0:00:17.8]} 51... a4 {[%clk 0:00:12.1]} 52. bxa4 {[%clk 0:00:17.8]}
52... Nd7 {[%clk 0:00:07.7]} 53. Nf6+ {[%clk 0:00:18.3]} 53... Nxf6+ {[%clk
0:00:07.7]} 54. Bxf6 {[%clk 0:00:19.2]} 54... Kf8 {[%clk 0:00:08.6]} 55. d7
{[%clk 0:00:18.3]} 1-0

[Event "*** Titled Tuesday Blitz"]
[Site "Chess.com"]
[Date "2020.04.21"]
[Round "5"]
[White "Harut-1998"]
[Black "Dr-Bassem"]
[Result "1/2-1/2"]
[WhiteElo "2631"]
[BlackElo "2792"]
[TimeControl "180+1"]
[EndTime "10:57:31 PDT"]
[Termination "Game drawn by stalemate"]

1. d4 {[%clk 0:03:00.9]} 1... e6 {[%clk 0:02:57.8]} 2. c4 {[%clk 0:02:58.3]}
2... f5 {[%clk 0:02:58.2]} 3. Nf3 {[%clk 0:02:55.4]} 3... Nf6 {[%clk 0:02:58.6]}
4. g3 {[%clk 0:02:54.4]} 4... Be7 {[%clk 0:02:57.9]} 5. Bg2 {[%clk 0:02:53.8]}
5... O-O {[%clk 0:02:58.3]} 6. O-O {[%clk 0:02:54.4]} 6... d6 {[%clk 0:02:58.3]}
7. Nc3 {[%clk 0:02:50.4]} 7... Qe8 {[%clk 0:02:58.7]} 8. Bg5 {[%clk 0:02:37]}
8... Ne4 {[%clk 0:02:57.6]} 9. Bxe7 {[%clk 0:02:34.2]} 9... Nxc3 {[%clk
0:02:57.2]} 10. bxc3 {[%clk 0:02:32.3]} 10... Qxe7 {[%clk 0:02:57.6]} 11. e3
{[%clk 0:02:29.8]} 11... Nc6 {[%clk 0:02:52.4]} 12. Nd2 {[%clk 0:02:27.3]} 12...
e5 {[%clk 0:02:49.9]} 13. Rb1 {[%clk 0:02:22.7]} 13... e4 {[%clk 0:02:40.3]} 14.
f3 {[%clk 0:02:11.2]} 14... exf3 {[%clk 0:02:40]} 15. Qxf3 {[%clk 0:02:11.7]}
15... Rb8 {[%clk 0:02:30.3]} 16. e4 {[%clk 0:02:03.1]} 16... Bd7 {[%clk
0:02:27.3]} 17. Qd3 {[%clk 0:01:56.3]} 17... Qg5 {[%clk 0:02:00.5]} 18. exf5
{[%clk 0:01:31.5]} 18... Bxf5 {[%clk 0:01:56.4]} 19. Rxf5 {[%clk 0:01:24]} 19...
Rxf5 {[%clk 0:01:50.2]} 20. Bxc6 {[%clk 0:01:22.7]} 20... Rbf8 {[%clk 0:01:45]}
21. Be4 {[%clk 0:01:15.2]} 21... Rf4 {[%clk 0:01:12.9]} 22. Bxh7+ {[%clk
0:00:48]} 22... Kh8 {[%clk 0:01:12.7]} 23. Qg6 {[%clk 0:00:46.3]} 23... Qxg6
{[%clk 0:00:48.5]} 24. Bxg6 {[%clk 0:00:47.2]} 24... Rf2 {[%clk 0:00:48.3]} 25.
Ne4 {[%clk 0:00:28.3]} 25... Rxa2 {[%clk 0:00:47.8]} 26. Rxb7 {[%clk 0:00:27.7]}
26... a5 {[%clk 0:00:46.7]} 27. Rxc7 {[%clk 0:00:24.3]} 27... a4 {[%clk
0:00:45.4]} 28. Nxd6 {[%clk 0:00:20]} 28... Re2 {[%clk 0:00:24.5]} 29. Ra7
{[%clk 0:00:13.9]} 29... Re6 {[%clk 0:00:20.9]} 30. Nf7+ {[%clk 0:00:11.6]}
30... Kg8 {[%clk 0:00:20.9]} 31. Bh7+ {[%clk 0:00:04.2]} 31... Kxh7 {[%clk
0:00:15.1]} 32. Ng5+ {[%clk 0:00:04.8]} 32... Kg6 {[%clk 0:00:15.2]} 33. Nxe6
{[%clk 0:00:05.7]} 33... Rf3 {[%clk 0:00:10.4]} 34. Nf4+ {[%clk 0:00:06.1]}
34... Kf5 {[%clk 0:00:10.4]} 35. Rxa4 {[%clk 0:00:07]} 35... g5 {[%clk
0:00:10.7]} 36. c5 {[%clk 0:00:06.7]} 36... gxf4 {[%clk 0:00:09.8]} 37. gxf4
{[%clk 0:00:07.1]} 37... Rxc3 {[%clk 0:00:09]} 38. Kf2 {[%clk 0:00:05.5]} 38...
Kxf4 {[%clk 0:00:09.4]} 39. d5+ {[%clk 0:00:05.9]} 39... Ke5 {[%clk 0:00:09.3]}
40. d6 {[%clk 0:00:06.8]} 40... Rxc5 {[%clk 0:00:08.5]} 41. d7 {[%clk
0:00:04.8]} 41... Rd5 {[%clk 0:00:08.7]} 42. Ra7 {[%clk 0:00:05.5]} 42... Ke6
{[%clk 0:00:07.8]} 43. Kg3 {[%clk 0:00:06.1]} 43... Rxd7 {[%clk 0:00:08.2]} 44.
Rxd7 {[%clk 0:00:05.4]} 44... Kxd7 {[%clk 0:00:09.1]} 45. Kg4 {[%clk 0:00:06.2]}
45... Ke7 {[%clk 0:00:09.7]} 46. Kg5 {[%clk 0:00:07.1]} 46... Kf8 {[%clk
0:00:10.3]} 47. Kg6 {[%clk 0:00:07.4]} 47... Kg8 {[%clk 0:00:10.9]} 48. Kh6
{[%clk 0:00:08.2]} 48... Kh8 {[%clk 0:00:11.5]} 49. h4 {[%clk 0:00:09.1]} 49...
Kg8 {[%clk 0:00:11.9]} 50. h5 {[%clk 0:00:10]} 50... Kh8 {[%clk 0:00:12.8]} 51.
Kg6 {[%clk 0:00:10.9]} 51... Kg8 {[%clk 0:00:13.5]} 52. h6 {[%clk 0:00:11.8]}
52... Kh8 {[%clk 0:00:14.4]} 53. Kh5 {[%clk 0:00:11.8]} 53... Kg8 {[%clk
0:00:14.9]} 54. Kg6 {[%clk 0:00:12.2]} 54... Kh8 {[%clk 0:00:15.8]} 55. h7
{[%clk 0:00:12.5]} 1/2-1/2

[Event "*** Titled Tuesday Blitz"]
[Site "Chess.com"]
[Date "2020.04.21"]
[Round "5"]
[White "karinachess1"]
[Black "Juanovic"]
[Result "1-0"]
[WhiteElo "2473"]
[BlackElo "2147"]
[TimeControl "180+1"]
[EndTime "10:57:31 PDT"]
[Termination "karinachess1 won by resignation"]

1. Nf3 {[%clk 0:03:00.9]} 1... d5 {[%clk 0:02:58.2]} 2. d4 {[%clk 0:03:00.1]}
2... Nf6 {[%clk 0:02:57.8]} 3. c4 {[%clk 0:03:00.3]} 3... c6 {[%clk 0:02:57.9]}
4. e3 {[%clk 0:02:59.4]} 4... Nbd7 {[%clk 0:02:57.4]} 5. Nbd2 {[%clk 0:02:55.9]}
5... g6 {[%clk 0:02:55.7]} 6. b3 {[%clk 0:02:53.4]} 6... Bg7 {[%clk 0:02:55.6]}
7. Bb2 {[%clk 0:02:53.8]} 7... O-O {[%clk 0:02:55.7]} 8. Be2 {[%clk 0:02:52.7]}
8... a5 {[%clk 0:02:44.3]} 9. a4 {[%clk 0:02:48]} 9... dxc4 {[%clk 0:02:39.4]}
10. Nxc4 {[%clk 0:02:43]} 10... Nd5 {[%clk 0:02:36.6]} 11. O-O {[%clk
0:02:39.8]} 11... Nb4 {[%clk 0:02:36.6]} 12. e4 {[%clk 0:02:06.7]} 12... Nf6
{[%clk 0:02:31.4]} 13. Bd3 {[%clk 0:02:05.9]} 13... Bg4 {[%clk 0:02:31.1]} 14.
h3 {[%clk 0:02:05]} 14... Bxf3 {[%clk 0:02:30.7]} 15. Qxf3 {[%clk 0:02:05.9]}
15... e6 {[%clk 0:02:31]} 16. Rad1 {[%clk 0:02:03.1]} 16... Qc7 {[%clk
0:02:26.3]} 17. Rfe1 {[%clk 0:01:50.2]} 17... Rad8 {[%clk 0:02:23.5]} 18. Bb1
{[%clk 0:01:48]} 18... b5 {[%clk 0:01:56.1]} 19. Ne5 {[%clk 0:01:38.2]} 19...
Nd7 {[%clk 0:01:46]} 20. Ng4 {[%clk 0:01:29.9]} 20... h5 {[%clk 0:01:42]} 21.
Ne3 {[%clk 0:01:30]} 21... bxa4 {[%clk 0:01:38.9]} 22. bxa4 {[%clk 0:01:30.9]}
22... c5 {[%clk 0:01:36.1]} 23. Qe2 {[%clk 0:01:16.8]} 23... cxd4 {[%clk
0:01:34.3]} 24. Bxd4 {[%clk 0:01:16.9]} 24... e5 {[%clk 0:01:30.9]} 25. Bb2
{[%clk 0:01:11.8]} 25... Nb6 {[%clk 0:01:27.9]} 26. Rc1 {[%clk 0:01:04.1]} 26...
Qa7 {[%clk 0:01:16]} 27. Qb5 {[%clk 0:00:51.3]} 27... Rd2 {[%clk 0:01:07.5]} 28.
Bc3 {[%clk 0:00:48.2]} 28... Rdd8 {[%clk 0:00:50.9]} 29. Bxb4 {[%clk 0:00:48.4]}
29... axb4 {[%clk 0:00:50.7]} 30. a5 {[%clk 0:00:48.9]} 30... Nd7 {[%clk
0:00:44]} 31. Qxb4 {[%clk 0:00:49.3]} 31... Nf6 {[%clk 0:00:42.6]} 32. Red1
{[%clk 0:00:45.8]} 32... Rd4 {[%clk 0:00:40.2]} 33. Rxd4 {[%clk 0:00:35.9]}
33... exd4 {[%clk 0:00:41.1]} 34. Nc4 {[%clk 0:00:29.6]} 34... Ra8 {[%clk
0:00:41]} 35. Bd3 {[%clk 0:00:21.7]} 35... Nd7 {[%clk 0:00:36.7]} 36. Nb6 {[%clk
0:00:18.7]} 36... Rb8 {[%clk 0:00:34.1]} 37. Rb1 {[%clk 0:00:18.3]} 37... Ne5
{[%clk 0:00:31]} 38. Bf1 {[%clk 0:00:17.5]} 38... Nc6 {[%clk 0:00:28.5]} 39. Qd6
{[%clk 0:00:15.9]} 39... Nxa5 {[%clk 0:00:26.1]} 40. e5 {[%clk 0:00:13.1]} 40...
Re8 {[%clk 0:00:20.5]} 41. Qxd4 {[%clk 0:00:11.3]} 41... Bxe5 {[%clk 0:00:19.2]}
42. Qa4 {[%clk 0:00:11.4]} 42... Nc6 {[%clk 0:00:14.1]} 43. Qxc6 {[%clk
0:00:10.8]} 43... Re6 {[%clk 0:00:09.8]} 44. Qc8+ {[%clk 0:00:10.4]} 44... Kg7
{[%clk 0:00:10.3]} 45. Nd7 {[%clk 0:00:10.4]} 45... Bd4 {[%clk 0:00:09.8]} 46.
Qf8+ {[%clk 0:00:09]} 46... Kh7 {[%clk 0:00:06.9]} 47. Qxf7+ {[%clk 0:00:09]}
47... Bg7 {[%clk 0:00:07.2]} 48. Nf8+ {[%clk 0:00:07.4]} 48... Kh6 {[%clk
0:00:06.3]} 49. Qxa7 {[%clk 0:00:07.3]} 1-0